{"text_format":"1","workbook":"xlsx","n_sheets":6,"sheets":["menu","voci di costo","basi di riparto","BASE UNICA","BASE MULTIPLA","CENTRI DI COSTO"],"not_rendered":{"charts":0,"images":0,"macros":1,"external_links":0,"defined_names":143,"comments":0,"pivot_tables":0},"unopened":[],"bounds":{"document_bytes":16777216,"sheet_cells":100000,"rows_first":2000,"rows_last":500,"rows_between":2000,"halvings":0,"cell_chars":16384,"cell_head_chars":4096},"cells_cut":0,"cells_raw":0,"read":"whole","date_system":"1900"}

{"sheet":"menu","index":0,"n_rows":0,"n_cols":0,"rows_kept":0,"cut":false,"hidden":false,"merged":[]}

{"sheet":"voci di costo","index":1,"n_rows":24,"n_cols":4,"rows_kept":24,"cut":false,"hidden":false,"merged":[]}
[]
[]
[]
[null,null,"voci di costo","importo"]
[null,null,"costo unitario materie prime vasi",5.5]
[null,null,"costo unitario materie prime bicchieri",3]
[null,null,"TOTALE COSTI PER STIPENDI",{"$f":"D9+'voci di costo'!costo_totale_manodopera_diretta","v":400000}]
[null,null,"costo totale manodopera diretta",200000]
[null,null,"TOTALE MANODOPERA INDIRETTA",{"$f":"costo_tot_mdo_indle+'voci di costo'!stipendio_responsabile_forno+'voci di costo'!stipendio_responsabile_fucina_e_sabbiatura+'voci di costo'!stipendio_responsabile_amministrazione+'voci di costo'!stipendio_responsabile_magazzino+'voci di costo'!stipendio_responsabile_vendite","v":200000}]
[null,null,"costo totale manodopera indiretta industriale",66000]
[null,null,"stipendio responsabile forno",26000]
[null,null,"stipendio responsabile fucina e sabbiatura",28000]
[null,null,"stipendio responsabile amministrazione",30000]
[null,null,"stipendio responsabile magazzino",20000]
[null,null,"stipendio responsabile vendite",30000]
[null,null,"TOTALE COSTI GENERALI",{"$f":"SUM(D17:D19,D21:D23)","v":98400}]
[null,null,"energia",11400]
[null,null,"riscaldamento",8000]
[null,null,"assicurazione impianti e attrezzature",3000]
[null,null,"TOTALE AMMORTAMENTI",{"$f":"SUM(D21:D23)","v":76000}]
[null,null,"ammortamenti industriali",60000]
[null,null,"ammortamenti mezzi di trasporto interni",7000]
[null,null,"ammortamento hardware e software",9000]
[null,null,"TOTALE COSTI INDIRETTI",{"$f":"'voci di costo'!TOTALE_COSTI_GENERALI+D9","v":298400}]

{"sheet":"basi di riparto","index":2,"n_rows":18,"n_cols":10,"rows_kept":18,"cut":false,"hidden":false,"merged":[]}
[]
[]
[]
[]
[null,"voce di costo","base di riparto","valore totale","valore vasi","valore bicchieri"]
[null,{"$f":"'voci di costo'!C8","v":"costo totale manodopera diretta"},"ore lavorate",{"$f":"SUM(E6:F6)","v":14000},9130,4870]
[null,{"$f":"'voci di costo'!C20","v":"TOTALE AMMORTAMENTI"},"ore macchina",72,60,12]
[]
[null,"CENTRI DI COSTO - BASI DI RIPARTO"]
[null,null,"base di riparto","forno","fucina","sabbiatura","magazzino","amm.ne","comm.le","totale"]
[null,"costo manodopera diretta",null,0.2,0.6,0.2,null,null,null,{"$f":"SUM(D11:I11)","v":1}]
[null,"costo manodopera indiretta industriale","costi mdo diretta"]
[null,"responsabile fucina e sabbiatura","costi mdo diretta"]
[null,"ammortamenti industriali","metri quadrati",2000,500,500,null,null,null,{"$f":"SUM(D14:I14)","v":3000}]
[null,"ammortamento mezzi di trasporto","magazzino"]
[null,"ammortamento hardware",null,null,null,null,{"$f":"1/3","v":0.33333333333333331},0.33333333333333331,0.33333333333333331,{"$f":"SUM(D16:I16)","v":1}]
[null,"riscaldamento","metri cubi",0.4,0.15,0.15,0.05,0.15,0.1,1.0000000000000002]
[null,"energia elettrica e assicurazione","ammortamento"]

{"sheet":"BASE UNICA","index":3,"n_rows":11,"n_cols":6,"rows_kept":11,"cut":false,"hidden":false,"merged":[]}
[]
[]
[]
[]
[]
[]
[null,"COSTI","COEFFICIENTE","VASI","BICCHIERI","controllo"]
[null,"materie prime",null,{"$f":"'voci di costo'!costo_unitario_materie_prime_vasi","v":5.5},{"$f":"'voci di costo'!costo_unitario_materie_prime_bicchieri","v":3}]
[null,"manodopera diretta",{"$f":"'voci di costo'!costo_totale_manodopera_diretta/ore_lavorate_totali","v":14.285714285714286},{"$f":"coefficiente_riparto_manodopera_diretta*ore_lavorate_vasi","v":130428.57142857143},{"$f":"coefficiente_riparto_manodopera_diretta*ore_lavorate_bicchieri","v":69571.42857142858},{"$f":"SUM(D9:E9)-'voci di costo'!costo_totale_manodopera_diretta","v":0}]
[null,"costi indiretti",{"$f":"'voci di costo'!TOTALE_COSTI_INDIRETTI/'voci di costo'!costo_totale_manodopera_diretta","v":1.492},{"$f":"C10*D9","v":194599.42857142858},{"$f":"coefficiente_unitario_costi_indiretti*E9","v":103800.57142857143},{"$f":"SUM(D10:E10)-'voci di costo'!TOTALE_COSTI_INDIRETTI","v":0}]
[null,"TOTALE",null,{"$f":"SUM(D8:D10)","v":325033.5},173375]

{"sheet":"BASE MULTIPLA","index":4,"n_rows":12,"n_cols":6,"rows_kept":12,"cut":false,"hidden":false,"merged":[]}
[]
[]
[]
[]
[]
[]
[null,"COSTI","COEFFICIENTE","VASI","BICCHIERI","controllo"]
[null,"materie prime",null,{"$f":"'voci di costo'!costo_unitario_materie_prime_vasi","v":5.5},{"$f":"'voci di costo'!costo_unitario_materie_prime_bicchieri","v":3}]
[null,"manodopera diretta",{"$f":"'voci di costo'!costo_totale_manodopera_diretta/ore_lavorate_totali","v":14.285714285714286},{"$f":"C9*ore_lavorate_vasi","v":130428.57142857143},{"$f":"coefficiente_unitario_mdo_diretta*ore_lavorate_bicchieri","v":69571.42857142858},{"$f":"SUM(D9:E9)-'voci di costo'!costo_totale_manodopera_diretta","v":0}]
[null,"ammortamenti",{"$f":"'voci di costo'!TOTALE_AMMORTAMENTI/ore_macchina_totali","v":1055.5555555555557},{"$f":"coefficiente_unitario_ammortamenti*ore_macchina_vasi","v":63333.333333333343},{"$f":"coefficiente_unitario_ammortamenti*ore_macchina_bicchieri","v":12666.666666666668},{"$f":"SUM(D10:E10)-'voci di costo'!TOTALE_AMMORTAMENTI","v":0}]
[null,"altri costi indiretti",{"$f":"('voci di costo'!TOTALE_COSTI_INDIRETTI-'voci di costo'!TOTALE_AMMORTAMENTI)/ore_lavorate_totali","v":15.885714285714286},{"$f":"coefficiente_unitario_altri_costi_indiretti*ore_lavorate_vasi","v":145036.57142857142},{"$f":"coefficiente_unitario_altri_costi_indiretti*ore_lavorate_bicchieri","v":77363.42857142858},{"$f":"SUM(D11:E11)-'voci di costo'!TOTALE_COSTI_INDIRETTI+'voci di costo'!TOTALE_AMMORTAMENTI","v":0}]
[null,"TOTALE",null,{"$f":"SUM(D8:D11)","v":338803.97619047621},159604.52380952385]

{"sheet":"CENTRI DI COSTO","index":5,"n_rows":36,"n_cols":9,"rows_kept":36,"cut":false,"hidden":false,"merged":[]}
[]
[]
[]
[null,"costi","amministrazione","magazzino","forno","fucina","sabbiatura","commerciale","totale"]
[null,"mdo diretta",null,null,{"$f":"'voci di costo'!costo_totale_manodopera_diretta/SUM('basi di riparto'!D11:F11)*base_riparto_mdo_dir_forno","v":40000},{"$f":"'voci di costo'!costo_totale_manodopera_diretta/SUM('basi di riparto'!D11:F11)*base_riparto_mdo_dir_fucina","v":120000},{"$f":"'voci di costo'!costo_totale_manodopera_diretta/SUM('basi di riparto'!D11:F11)*base_riparto_mdo_dir_sabbiatura","v":40000},null,{"$f":"SUM(C5:H5)","v":200000}]
[null,"mdo indiretta",null,null,{"$f":"'voci di costo'!costo_totale_manodopera_indiretta_industriale/SUM('basi di riparto'!D11:F11)*base_riparto_mdo_dir_forno","v":13200},{"$f":"'voci di costo'!costo_totale_manodopera_indiretta_industriale/SUM('basi di riparto'!D11:F11)*base_riparto_mdo_dir_fucina","v":39600},{"$f":"'voci di costo'!costo_totale_manodopera_indiretta_industriale*base_riparto_mdo_dir_sabbiatura","v":13200},null,66000]
[null,"stipendi",{"$f":"'voci di costo'!stipendio_responsabile_amministrazione","v":30000},{"$f":"'voci di costo'!stipendio_responsabile_magazzino","v":20000},{"$f":"'voci di costo'!stipendio_responsabile_forno","v":26000},{"$f":"'voci di costo'!stipendio_responsabile_fucina_e_sabbiatura/(mdo_dir_fucina+mdo_dir_sabbiatura)*mdo_dir_fucina","v":21000},{"$f":"'voci di costo'!stipendio_responsabile_fucina_e_sabbiatura/(mdo_dir_fucina+mdo_dir_sabbiatura)*mdo_dir_sabbiatura","v":7000},{"$f":"'voci di costo'!stipendio_responsabile_vendite","v":30000},134000]
[null,"ammortamenti industriali",null,null,{"$f":"'voci di costo'!ammortamenti_industriali/totale_base_riparto_ammind*base_riparto_ammind_forno","v":40000},{"$f":"'voci di costo'!ammortamenti_industriali/totale_base_riparto_ammind*base_riparto_ammind_fucina","v":10000},{"$f":"'voci di costo'!ammortamenti_industriali/totale_base_riparto_ammind*base_riparto_ammind_sabbiatura","v":10000},null,60000]
[null,"amm.to mezzi di trasporto",null,{"$f":"'voci di costo'!ammortamenti_mezzi_di_trasporto_interni","v":7000},null,null,null,null,7000]
[null,"amm.to hw e sw",{"$f":"'voci di costo'!ammortamento_hardware_e_software*base_riparto_ammhard_amministrazione","v":3000},{"$f":"'voci di costo'!ammortamento_hardware_e_software*base_riparto_ammhard_forno","v":3000},null,null,null,{"$f":"'voci di costo'!ammortamento_hardware_e_software*base_riparto_ammhard_commerciale","v":3000},9000]
[null,"riscaldamento",{"$f":"'voci di costo'!riscaldamento*base_riparto_riscald_ammne","v":1200},{"$f":"'voci di costo'!riscaldamento*base_riparto_riscald_magazzino","v":400},{"$f":"'voci di costo'!riscaldamento*base_riparto_riscald_forno","v":3200},{"$f":"'voci di costo'!riscaldamento*base_riparto_riscald_fucina","v":1200},{"$f":"'voci di costo'!riscaldamento*base_riparto_riscad_sabbiatura","v":1200},{"$f":"'voci di costo'!riscaldamento*base_riparto_riscald_commle","v":800},8000]
[null,"energia",{"$f":"'voci di costo'!energia/'voci di costo'!TOTALE_AMMORTAMENTI*amm_amministrazione","v":450},{"$f":"'voci di costo'!energia/'voci di costo'!TOTALE_AMMORTAMENTI*(amm_magazzino_1+amm_magazzino_2)","v":1500},{"$f":"'voci di costo'!energia/'voci di costo'!TOTALE_AMMORTAMENTI*amm_forno","v":6000},{"$f":"'voci di costo'!energia/'voci di costo'!TOTALE_AMMORTAMENTI*amm_fucina","v":1500},{"$f":"'voci di costo'!energia/'voci di costo'!TOTALE_AMMORTAMENTI*amm_sabbiatura","v":1500},{"$f":"'voci di costo'!energia/'voci di costo'!TOTALE_AMMORTAMENTI*amm_commerciale","v":450},11400]
[null,"assicurazioni",{"$f":"'voci di costo'!assicurazione_impianti_e_attrezzature/'voci di costo'!TOTALE_AMMORTAMENTI*amm_amministrazione","v":118.42105263157895},{"$f":"'voci di costo'!assicurazione_impianti_e_attrezzature/'voci di costo'!TOTALE_AMMORTAMENTI*(amm_magazzino_1+amm_magazzino_2)","v":394.73684210526312},{"$f":"'voci di costo'!assicurazione_impianti_e_attrezzature/'voci di costo'!TOTALE_AMMORTAMENTI*amm_forno","v":1578.9473684210525},{"$f":"'voci di costo'!assicurazione_impianti_e_attrezzature/'voci di costo'!TOTALE_AMMORTAMENTI*amm_fucina","v":394.73684210526312},{"$f":"'voci di costo'!assicurazione_impianti_e_attrezzature/'voci di costo'!TOTALE_AMMORTAMENTI*amm_sabbiatura","v":394.73684210526312},{"$f":"'voci di costo'!assicurazione_impianti_e_attrezzature/'voci di costo'!TOTALE_AMMORTAMENTI*amm_commerciale","v":118.42105263157895},2999.9999999999995]
[null,"totali",{"$f":"SUM(C5:C13)","v":34768.42105263158},32294.736842105263,129978.94736842105,193694.73684210525,73294.736842105267,34368.42105263158,498400]
[null,"amministrazione","\\\\\\\\\\\\",{"$f":"C14/('voci di costo'!TOTALE_COSTI_PER_STIPENDI-'voci di costo'!stipendio_responsabile_amministrazione)*costo_pers_mag","v":1879.3741109530586},{"$f":"C14/('voci di costo'!TOTALE_COSTI_PER_STIPENDI-'voci di costo'!stipendio_responsabile_amministrazione)*(costo_pers_forno1+costo_pers_forno_2+costo_pers_forno_3)","v":7442.3214793741117},{"$f":"C14/('voci di costo'!TOTALE_COSTI_PER_STIPENDI-'voci di costo'!stipendio_responsabile_amministrazione)*(costo_pers_fucina_1+costo_pers_fucina_2+costo_pers_fucina_3)","v":16970.748221906117},{"$f":"C14/('voci di costo'!TOTALE_COSTI_PER_STIPENDI-'voci di costo'!stipendio_responsabile_amministrazione)*(costo_pers_sabbiatura_1+costo_personale_sabbiatura_2+costo_personale_sabbiatura_3)","v":5656.9160739687059},{"$f":"C14/('voci di costo'!TOTALE_COSTI_PER_STIPENDI-'voci di costo'!stipendio_responsabile_amministrazione)*costo_personale_commerciale","v":2819.0611664295875},34768.42105263158]
[null,"totali",null,{"$f":"SUM(D14:D15)","v":34174.11095305832},137421.26884779517,210665.48506401136,78951.652916073974,37187.482219061167,498400]
[null,"magazzino",null,"\\\\\\\\\\",{"$f":"$D16/4","v":8543.52773826458},8543.52773826458,8543.52773826458,8543.52773826458,34174.11095305832]
[null,"totali",null,null,{"$f":"SUM(E16:E17)","v":145964.79658605976},219209.01280227595,87495.180654338561,45731.009957325747,498400]
[]
[]
[null,null,"tot. costo","fatturato","prezzo vasi","prezzo bicchieri","coefficiente","costo vasi","costo bicchieri"]
[null,"centro commerciale",{"$f":"H18","v":45731.009957325747},700000,120,70,{"$f":"C22/D22","v":6.5330014224751071E-2},{"$f":"G22*E22","v":7.8396017069701287},{"$f":"G22*F22","v":4.5731009957325748}]
[]
[null,null,"tot. costo","tot. h. lavorate","tempo vasi","tempo bicchieri","coefficiente","costo vasi","costo bicchieri"]
[null,"forno",{"$f":"E18","v":145964.79658605976},4000,5,2,{"$f":"C25/D25","v":36.491199146514937},{"$f":"G25*E25","v":182.45599573257468},{"$f":"G25*F25","v":72.982398293029874}]
[null,"fucina",{"$f":"F18","v":219209.01280227595},8000,6,2,27.401126600284492,164.40675960170694,54.802253200568984]
[null,"sabbiatura",{"$f":"G18","v":87495.180654338561},2000,4,4,43.747590327169277,174.99036130867711,174.99036130867711]
[null,"totale",null,null,null,null,null,{"$f":"SUM(H25:H27)","v":521.85311664295864},302.77501280227597]
[]
[null,null,"vasi","bicchieri"]
[null,"materie prime",{"$f":"'voci di costo'!costo_unitario_materie_prime_vasi","v":5.5},{"$f":"'voci di costo'!costo_unitario_materie_prime_bicchieri","v":3}]
[null,"centro forno",{"$f":"H25","v":182.45599573257468},72.982398293029874]
[null,"centro fucina",{"$f":"H26","v":164.40675960170694},54.802253200568984]
[null,"centro sabbiatura",{"$f":"H27","v":174.99036130867711},174.99036130867711]
[null,"centro commerciale",{"$f":"H22","v":7.8396017069701287},4.5731009957325748]
[null,"totale",{"$f":"SUM(C31:C35)","v":535.19271834992878},310.34811379800857]